fUSD/lending_fUSD_20240323
["ID","MTS","AMOUNT","RATE_DAILY","PERIOD"]
[320097343,1711156240361,-154.15,0.00019029,2]
[320097345,1711156240371,-408.84,0.00019041,2]
[320097347,1711156240381,-150.97447952,0.00019059,2]
[320097349,1711156240392,-160.03749489,0.00019071,2]
[320097351,1711156240401,-177.13775767,0.00019078,2]
[320097353,1711156240411,-162.2601712,0.00019103,2]
[320097355,1711156240420,-129.34326043,0.0001912,2]
[320097358,1711156240437,-21.63121909,0.0001912,2]
[320097360,1711156240447,-164.86,0.00019135,2]
[320097362,1711156240457,-479.93270419,0.00019154,2]
[320097364,1711156240467,-156.70510043,0.00019161,2]
[320097366,1711156240477,-236.07611641,0.00019187,2]
[320097368,1711156240487,-156.70510043,0.00019201,2]
[320097370,1711156240496,-164.86,0.0001925,2]
[320097372,1711156240506,-151.11775509,0.00019273,2]
[320097374,1711156240516,-479.93270419,0.00019307,2]
[320097376,1711156240526,-150.97447952,0.00019312,2]
[320097378,1711156240536,-174.06,0.00019317,2]
[320097380,1711156240546,-158.5563322,0.00019318,2]
[320097382,1711156240556,-479.93270419,0.0001932,2]
[320097384,1711156240565,-156.55620872,0.00019333,2]
[320097386,1711156240575,-166.5527312,0.00019362,2]
[320097388,1711156240584,-162.2601712,0.00019364,2]
[320097390,1711156240594,-164.86,0.00019365,2]
[320097392,1711156240603,-175.53380711,0.00019393,2]
[320097394,1711156240612,-418.79097967,0.00019394,2]
[320097396,1711156240622,-198.6880857,0.00019444,2]
[320097398,1711156240631,-714.94015189,0.00019448,2]
[320097400,1711156240641,-236.07611641,0.00019452,2]
[320097402,1711156240650,-166.66666667,0.00019459,2]
[320097404,1711156240660,-471.94635257,0.00019476,2]
[320097407,1711156240669,-236.07611641,0.00019523,2]
[320097409,1711156240679,-1151.6705434,0.00019534,2]
[320097410,1711156240688,-236.07611641,0.00019544,2]
[320097412,1711156240698,-150.97447952,0.00019587,2]
[320097415,1711156240707,-1320.62043,0.000196,2]
[320097417,1711156240717,-35348.62160902,0.0001961,2]
[320097419,1711156240727,-162.2601712,0.00019624,2]
[320097421,1711156240737,-160.03749489,0.00019643,2]
[320097424,1711156240757,-166.52535599,0.00019651,2]
[320097426,1711156240768,-967.40718692,0.00019671,2]
[320097428,1711156240777,-479.93270419,0.00019688,2]
[320097430,1711156240786,-304.2399,0.000197,2]
[320097432,1711156240796,-500.0,0.000197,2]
[320097434,1711156240806,-477.3081,0.000197,2]
[320097436,1711156240815,-160.03749489,0.00019725,2]
[320097438,1711156240825,-354.4650343,0.00019731,2]
[320097440,1711156240834,-154.29350386,0.00019737,2]
[320097442,1711156240844,-471.94635257,0.00019744,2]
[320097444,1711156240854,-340.97299929,0.0001976,2]
[320097446,1711156240864,-249.45346502,0.00019788,2]
[320097448,1711156240873,-171.10359108,0.00019796,2]
[320097450,1711156240883,-151.032309,0.00019798,2]
[320097452,1711156240893,-151.032309,0.00019798,2]
[320097454,1711156240902,-151.032309,0.00019798,2]
[320097456,1711156240912,-151.032309,0.00019798,2]
[320097458,1711156240922,-151.032309,0.00019798,2]
[320097461,1711156240932,-151.032309,0.00019798,2]
[320097462,1711156240942,-151.032309,0.00019798,2]
[320097465,1711156240954,-151.032309,0.00019798,2]
[320097467,1711156240963,-151.032309,0.00019798,2]
[320097469,1711156240973,-151.032309,0.00019798,2]
[320097471,1711156240982,-151.032309,0.00019798,2]
[320097473,1711156240992,-151.032309,0.00019798,2]
[320097475,1711156241002,-151.032309,0.00019798,3]
[320097477,1711156241011,-151.032309,0.00019798,3]
[320097479,1711156241020,-151.032309,0.00019798,3]
[320097480,1711156241030,-151.032309,0.00019798,3]
[320097482,1711156241040,-151.032309,0.00019798,3]
[320097483,1711156241049,-151.032309,0.00019798,3]
[320097484,1711156241060,-151.032309,0.00019798,3]
[320097485,1711156241069,-151.032309,0.00019798,3]
[320097486,1711156241079,-151.032309,0.00019798,3]
[320097487,1711156241089,-151.032309,0.00019798,3]
[320097488,1711156241098,-151.032309,0.00019798,3]
[320097489,1711156241109,-151.032309,0.00019798,3]
[320097490,1711156241118,-151.032309,0.00019798,3]
[320097491,1711156241129,-151.032309,0.00019798,3]
[320097492,1711156241140,-151.032309,0.00019798,3]
[320097493,1711156241150,-151.032309,0.00019798,3]
[320097494,1711156241160,-151.032309,0.00019798,3]
[320097495,1711156241170,-151.032309,0.00019798,3]
[320097496,1711156241184,-151.032309,0.00019798,3]
[320097497,1711156241196,-151.032309,0.00019798,2]
[320097498,1711156241207,-151.032309,0.00019798,2]
[320097499,1711156241217,-161.41931706,0.00019799,2]
[320097500,1711156241227,-1000.0,0.00019799,5]
[320097501,1711156241237,-1294.9406912,0.00019808,2]
[320097502,1711156241247,-156.70510043,0.00019821,2]
[320097503,1711156241257,-340.97299929,0.00019829,2]
[320097504,1711156241267,-800.0,0.0001984,2]
[320097505,1711156241279,-208.31759286,0.0001984,2]
[320097506,1711156241289,-415.27,0.00019856,2]
[320097507,1711156241299,-517.17,0.00019856,2]
[320097508,1711156241308,-150.0,0.00019856,2]
[320097509,1711156241318,-161.22,0.00019856,2]
[320097510,1711156241328,-150.0,0.00019856,2]
[320097511,1711156241338,-150.0,0.00019856,2]
[320097512,1711156241347,-161.22,0.00019856,2]
[320097513,1711156241357,-150.0,0.00019856,2]
[320097514,1711156241367,-517.17,0.00019856,2]
[320097515,1711156241377,-150.0,0.00019856,2]
[320097516,1711156241387,-150.0,0.00019856,2]
[320097517,1711156241397,-415.27,0.00019856,2]
[320097518,1711156241407,-150.0,0.00019856,2]
[320097519,1711156241417,-415.27,0.00019856,2]
[320097520,1711156241426,-150.0,0.00019856,2]
[320097521,1711156241436,-517.17,0.00019856,2]
[320097522,1711156241446,-161.22,0.00019856,2]
[320097523,1711156241456,-150.0,0.00019856,2]
[320097524,1711156241466,-150.0,0.00019856,2]
[320097525,1711156241476,-517.17,0.00019856,2]
[320097526,1711156241485,-161.22,0.00019856,2]
[320097527,1711156241495,-150.0,0.00019856,2]
[320097528,1711156241505,-415.27,0.00019856,2]
[320097529,1711156241515,-150.0,0.00019856,2]
[320097530,1711156241524,-415.27,0.00019856,2]
[320097531,1711156241534,-150.0,0.00019856,2]
[320097532,1711156241544,-161.22,0.00019856,2]
[320097533,1711156241555,-150.0,0.00019856,2]
[320097534,1711156241565,-150.0,0.00019856,2]
[320097535,1711156241575,-517.17,0.00019856,2]
[320097536,1711156241585,-517.17,0.00019856,2]
[320097537,1711156241594,-821.28,0.00019856,2]
[320097538,1711156241604,-358.71,0.00019856,2]
[320097539,1711156241614,-150.0,0.00019856,2]
[320097540,1711156241628,-150.0,0.00019856,2]
[320097541,1711156241638,-150.0,0.00019856,2]
[320097542,1711156241648,-150.0,0.00019856,2]
[320097543,1711156241658,-517.17,0.00019856,2]
[320097544,1711156241668,-415.27,0.00019856,2]
[320097545,1711156241677,-161.22,0.00019856,2]
[320097546,1711156241688,-150.0,0.00019856,2]
[320097547,1711156241699,-415.27,0.00019856,2]
[320097548,1711156241709,-150.0,0.00019856,2]
[320097549,1711156241719,-161.22,0.00019856,2]
[320097550,1711156241729,-517.17,0.00019856,2]
[320097551,1711156241739,-415.27,0.00019856,2]
[320097552,1711156241749,-514.92,0.00019856,2]
[320097553,1711156241758,-150.0,0.00019856,2]
[320097554,1711156241768,-150.0,0.00019856,2]
[320097555,1711156241778,-161.22,0.00019856,2]
[320097556,1711156241788,-413.57,0.00019856,2]
[320097557,1711156241797,-150.0,0.00019856,2]
[320097558,1711156241807,-160.42,0.00019856,2]
[320097559,1711156241817,-418.79097967,0.00019874,2]
[320097560,1711156241828,-162.2601712,0.00019885,2]
[320097561,1711156241838,-1000.0,0.0001989,2]
[320097562,1711156241848,-166.66666666,0.00019893,2]
[320097563,1711156241859,-155.0,0.00019894,2]
[320097564,1711156241871,-154017.03432989,0.00019895,2]
[320097565,1711156242849,-30814.20978221,0.00019895,2]
[320097566,1711156242859,-153.11867351,0.00019896,2]
[320097567,1711156242868,-169.63902023,0.00019896,2]
[320097568,1711156242877,-8264.7176706,0.00019897,2]
[320097569,1711156242887,-500.0,0.00019898,2]
[320097570,1711156242897,-257.53679742,0.00019899,2]
[320097571,1711156242907,-2438.8662743,0.00019899,2]
[320097572,1711156242920,-470.90830768,0.00019899,2]
[320097573,1711156242941,-355.00576016,0.00019899,2]
[320097574,1711156242954,-891.39152017,0.00019899,2]
[320097575,1711156242964,-340.97299929,0.00019899,2]
[320097576,1711156242973,-1060.09201486,0.00019899,2]
[320097577,1711156242985,-498.66315728,0.00019899,2]
[320097578,1711156242995,-1977.10302721,0.000199,2]
[320097579,1711156243010,-10954.4632505,0.000199,2]
[320097580,1711156243022,-1604.8592099,0.000199,2]
[320097581,1711156243035,-347.47550612,0.000199,2]
[320097582,1711156243046,-1043.68807452,0.000199,2]
[320097583,1711156243058,-1716.05999985,0.000199,2]
[320097584,1711156243133,-576.29772032,0.000199,2]
[320097585,1711156243194,-4664.7599111,0.000199,2]
[320097586,1711156243209,-814.20400143,0.000199,2]
[320097590,1711156257706,661.30225195,0.00013214,2]
[320097591,1711156452271,499.48,0.00016663,2]
[320097592,1711156595099,8845.56115117,0.00016788,2]
[320097593,1711156599989,8845.56115116,0.00016789,2]
[320097594,1711156605001,8845.56115116,0.00016789,2]
[320097595,1711157104146,474.5,0.0001631,2]
[320097596,1711157138126,-503.63897795,0.0001685,2]
[320097597,1711157238104,-150.81476518,0.00016842,2]
[320097605,1711157432656,-403.80146906,0.00016832,2]
[320097606,1711157432666,-551.0,0.00016833,2]
[320097607,1711157432675,-783.47628869,0.00016833,2]
[320097608,1711157432684,-150.0,0.00016833,2]
[320097609,1711157432694,-535.66375841,0.00016834,2]
[320097610,1711157432703,-532.28770106,0.00016834,2]
[320097611,1711157432715,-750.0,0.00016834,2]
[320097612,1711157432726,-4072.32155834,0.00016834,2]
[320097613,1711157432736,-3063.52579486,0.00016835,2]
[320097615,1711157432745,-529.30789956,0.00016837,2]
[320097617,1711157432755,-155.17011028,0.00016842,2]
[320097619,1711157432764,-163.45462527,0.00016856,2]
[320097621,1711157432774,-679.71524653,0.00016857,2]
[320097623,1711157432783,-500.00000009,0.00017,3]
[320097624,1711157432792,-1672.50811815,0.00017879,2]
[320097625,1711157432802,-5187.84642231,0.00017903,2]
[320097626,1711157432882,-9685.7011979,0.00017903,2]
[320097627,1711157432892,-746.37995964,0.00017904,2]
[320097628,1711157432902,-950.0,0.00018,4]
[320097629,1711157432911,-1141.41,0.00018,2]
[320097630,1711157432921,-500.0,0.00018041,2]
[320097631,1711157432930,-173.03,0.00018046,2]
[320097632,1711157432940,-249.83,0.00018051,2]
[320097633,1711157432949,-2808.92,0.00018054,2]
[320097634,1711157432958,-533.0,0.00018083,2]
[320097635,1711157432967,-200.0,0.00018083,2]
[320097636,1711157432977,-200.0,0.00018083,2]
[320097637,1711157432988,-200.0,0.00018083,2]
[320097638,1711157432998,-200.0,0.00018083,2]
[320097639,1711157433008,-200.0,0.00018083,2]
[320097640,1711157433017,-200.0,0.00018083,2]
[320097641,1711157433027,-200.0,0.00018083,2]
[320097642,1711157433036,-200.0,0.00018083,2]
[320097643,1711157433045,-200.0,0.00018083,2]
[320097644,1711157433055,-200.0,0.00018083,2]
[320097645,1711157433064,-200.0,0.00018083,2]
[320097646,1711157433074,-200.0,0.00018083,2]
[320097647,1711157433084,-200.0,0.00018083,2]
[320097648,1711157433093,-355.0,0.00018083,2]
[320097649,1711157433102,-500.0,0.00018088,2]
[320097650,1711157433112,-10633.46908764,0.000181,2]
[320097651,1711157433121,-150.99,0.00018101,2]
[320097652,1711157433131,-524.93,0.00018112,2]
[320097653,1711157433140,-511.25,0.00018131,2]
[320097654,1711157433150,-23880.0,0.00018135,2]
[320097655,1711157433160,-250.0,0.00018157,2]
[320097656,1711157433170,-10000.0,0.00018189,2]
[320097657,1711157433179,-250.0,0.00018198,2]
[320097658,1711157433188,-175.09,0.00018247,2]
[320097659,1711157433198,-151.43,0.00018309,2]
[320097660,1711157433207,-159.19,0.00018398,2]
[320097661,1711157433217,-475.07,0.00018419,2]
[320097662,1711157433226,-210.0,0.00018516,2]
[320097663,1711157433240,-177.88,0.00018532,2]
[320097664,1711157433249,-474.5,0.00018574,2]
[320097665,1711157433258,-480.26852781,0.00018695,2]
[320097666,1711157433268,-150.89,0.00018869,2]
[320097667,1711157433277,-158.5563322,0.00018998,2]
[320097668,1711157433286,-563.71666106,0.00019006,2]
[320097669,1711157433294,-150.97447952,0.00019052,2]
[320097670,1711157433303,-415.94167697,0.00019066,2]
[320097671,1711157433313,-563.71666106,0.00019169,2]
[320097672,1711157433322,-166.5527312,0.00019176,2]
[320097673,1711157433331,-415.94167697,0.00019204,2]
[320097674,1711157433340,-440.4832624,0.00019259,2]
[320097675,1711157433349,-415.94167697,0.00019261,2]
[320097676,1711157433358,-159.19,0.00019318,2]
[320097677,1711157433369,-563.71666106,0.00019334,2]
[320097678,1711157433378,-440.4832624,0.00019334,2]
[320097679,1711157433388,-6845.2129,0.00019336,2]
[320097680,1711157433398,-204.59930089,0.00019357,2]
[320097681,1711157433407,-440.4832624,0.00019373,2]
[320097682,1711157433417,-440.4832624,0.00019418,2]
[320097683,1711157433426,-166.66666666,0.00019425,2]
[320097684,1711157433435,-563.71666106,0.00019486,2]
[320097685,1711157433444,-563.71666106,0.00019496,2]
[320097686,1711157433454,-563.71666106,0.00019505,2]
[320097687,1711157433463,-563.71666106,0.0001952,2]
[320097688,1711157433472,-154.32187007,0.0001957,2]
[320097689,1711157433481,-563.71666106,0.00019582,2]
[320097690,1711157433490,-431.718,0.000196,2]
[320097691,1711157433499,-208.5555,0.000196,2]
[320097692,1711157433508,-156.86878538,0.00019616,2]
[320097693,1711157433517,-415.94167697,0.00019649,2]
[320097694,1711157433526,-313.06921884,0.0001968,2]
[320097695,1711157433536,-2908.80308737,0.00019692,2]
[320097696,1711157433545,-100000.0,0.00019693,2]
[320097697,1711157433555,-289.8270494,0.00019693,2]
[320097698,1711157433564,-153.11867349,0.00019698,2]
[320097699,1711157433576,-1100.51702,0.000197,2]
[320097700,1711157433585,-289.8270494,0.00019704,2]
[320097701,1711157433595,-1000.0,0.00019704,2]
[320097702,1711157433604,-289.8270494,0.00019715,2]
[320097703,1711157433614,-289.8270494,0.00019726,2]
[320097704,1711157433623,-131.67479997,0.00019736,2]
[320097716,1711157438484,-558.64119013,0.00019691,2]
[320097720,1711157438512,-1.43581752,0.00019691,2]
[320097722,1711157438522,-1898.56418248,0.00019693,2]
[320097724,1711157438538,-601.43581752,0.00019693,2]
[320097726,1711157438548,-79.27577842,0.00019736,2]
[320097732,1711157438591,-78.87647101,0.00019736,2]
[320097733,1711157438600,-153.11867349,0.00019738,2]
[320097735,1711157438609,-276.03718365,0.00019741,2]
[320097739,1711157438637,-385.58306208,0.00019741,2]
[320097743,1711157438661,-138.37975427,0.00019741,2]
[320097745,1711157438670,-289.8270494,0.00019747,2]
[320097747,1711157438680,-154.32187007,0.0001975,2]
[320097749,1711157438689,-166.66666666,0.00019758,2]
[320097751,1711157438698,-176.11139489,0.00019758,2]
[320097756,1711157438739,-113.71565451,0.00019758,2]
[320097758,1711157438748,-168.51980138,0.00019763,2]
[320097760,1711157438757,-390.87158102,0.00019766,2]
[320097762,1711157438766,-289.8270494,0.00019769,2]
[320097764,1711157438775,-415.94167697,0.0001977,2]
[320097765,1711157438783,-153.11867349,0.00019779,2]
[320097767,1711157438793,-289.8270494,0.0001978,2]
[320097769,1711157438802,-289.8270494,0.00019791,2]
[320097771,1711157438812,-155.0,0.00019791,2]
[320097774,1711157438821,-445.01768348,0.00019791,2]
[320097775,1711157438831,-151.032309,0.00019792,3]
[320097777,1711157438841,-151.032309,0.00019792,3]
[320097779,1711157438851,-151.032309,0.00019792,3]
[320097781,1711157438860,-151.032309,0.00019792,3]
[320097783,1711157438869,-151.032309,0.00019792,3]
[320097785,1711157438878,-151.032309,0.00019792,3]
[320097787,1711157438887,-151.032309,0.00019792,2]
[320097789,1711157438897,-151.032309,0.00019792,2]
[320097791,1711157438906,-151.032309,0.00019792,2]
[320097793,1711157438915,-151.032309,0.00019792,2]
[320097795,1711157438924,-151.032309,0.00019792,2]
[320097797,1711157438934,-128289.13513438,0.00019793,2]
[320097799,1711157438946,-484.5265281,0.00019793,2]
[320097803,1711157438968,-6062.9094044,0.00019793,2]
[320097906,1711157440081,-1641.57423807,0.00019793,2]
[320097909,1711157440097,-514.63207778,0.00019793,2]
[320097922,1711157440227,-1770.95387221,0.00019793,2]
[320097925,1711157440241,-1653.67688276,0.00019793,2]
[320097930,1711157440279,-3005.13252984,0.00019793,2]
[320097932,1711157440290,-668.94617597,0.00019793,2]
[320097934,1711157440301,-1404.33864976,0.00019793,2]
[320097936,1711157440312,-521.81754638,0.00019793,2]
[320098044,1711157442456,-162.61279525,0.000197,2]
[320098045,1711157442468,-338.02367611,0.00019793,2]
[320098046,1711157442483,-956.59263826,0.00019793,2]
[320098047,1711157442610,-5114.10009646,0.00019793,2]
[320098048,1711157442625,-513.79024652,0.00019793,2]
[320098049,1711157442688,-1736.41306025,0.00019793,2]
[320098050,1711157442712,-3304.41424944,0.00019793,2]
[320098051,1711157442726,-699.74385355,0.00019793,2]
[320098054,1711157442764,-6320.83521,0.00019793,2]
[320098064,1711157443102,-438.52259778,0.00019793,2]
[320098065,1711157443117,-52723.20690174,0.00019793,2]
[320098066,1711157443131,-743.39313038,0.00019793,2]
[320098067,1711157443145,-343.79598121,0.00019793,2]
[320098068,1711157443243,-1840.39095334,0.00019793,2]
[320098069,1711157443259,-796.75772232,0.00019793,2]
[320098070,1711157443273,-2636.80350039,0.00019793,2]
[320098071,1711157443287,-486.91192548,0.00019793,2]
[320098072,1711157443301,-944.3599996,0.00019793,2]
[320098073,1711157443314,-300.175,0.00019793,2]
[320098074,1711157443358,-952.72594572,0.00019793,2]
[320098075,1711157443372,-1280.42517282,0.00019793,2]
[320098076,1711157443387,-625.81698449,0.00019793,2]
[320098077,1711157443400,-392.347002,0.00019793,2]
[320098078,1711157443414,-1312.62137793,0.00019793,2]
[320098079,1711157443435,-14180.18973456,0.00019793,2]
[320098080,1711157443447,-151.032309,0.00019798,2]
[320098081,1711157443458,-151.032309,0.00019798,2]
[320098082,1711157443469,-151.032309,0.00019798,2]
[320098083,1711157443481,-151.032309,0.00019798,2]
[320098084,1711157443492,-151.032309,0.00019798,2]
[320098085,1711157443505,-151.032309,0.00019798,2]
[320098087,1711157443516,-151.032309,0.00019798,2]
[320098089,1711157443527,-151.032309,0.00019798,2]
[320098090,1711157443541,-151.032309,0.00019798,2]
[320098091,1711157443553,-151.032309,0.00019798,2]
[320098092,1711157443565,-151.032309,0.00019798,2]
[320098093,1711157443576,-151.032309,0.00019798,2]
[320098094,1711157443588,-151.032309,0.00019798,2]
[320098095,1711157443600,-151.032309,0.00019798,3]
[320098096,1711157443611,-151.032309,0.00019798,3]
[320098097,1711157443623,-151.032309,0.00019798,3]
[320098098,1711157443635,-151.032309,0.00019798,3]
[320098099,1711157443648,-151.032309,0.00019798,3]
[320098100,1711157443659,-151.032309,0.00019798,3]
[320098101,1711157443671,-151.032309,0.00019798,3]
[320098102,1711157443682,-151.032309,0.00019798,3]
[320098103,1711157443693,-151.032309,0.00019798,3]
[320098104,1711157443705,-151.032309,0.00019798,3]
[320098105,1711157443717,-151.032309,0.00019798,3]
[320098106,1711157443729,-151.032309,0.00019798,3]
[320098107,1711157443740,-151.032309,0.00019798,3]
[320098108,1711157443753,-151.032309,0.00019798,3]
[320098109,1711157443766,-151.032309,0.00019798,3]
[320098110,1711157443779,-212.26214269,0.00019798,2]
[320098111,1711157443790,-500.0,0.00019799,2]
[320098112,1711157443801,-289.8270494,0.00019801,2]
[320098113,1711157443812,-440.4832624,0.00019806,2]
[320098114,1711157443823,-289.8270494,0.00019812,2]
[320098115,1711157443833,-231.33991474,0.00019814,2]
[320098116,1711157443844,-153.11867349,0.00019819,2]
[320098117,1711157443868,-289.8270494,0.00019823,2]
[320098118,1711157443881,-289.8270494,0.00019834,2]
[320098119,1711157443895,-3809.82420709,0.0001984,2]
[320098120,1711157443909,-289.8270494,0.00019845,2]
[320098121,1711157443921,-289.8270494,0.00019856,2]
[320098122,1711157443934,-153.11867349,0.0001986,2]
[320098123,1711157443947,-289.8270494,0.00019866,2]
[320098124,1711157443960,-166.36181602,0.00019868,2]
[320098125,1711157443973,-514.92,0.00019877,2]
[320098126,1711157443986,-289.8270494,0.00019877,2]
[320098127,1711157443999,-196.99378064,0.00019883,2]
[320098128,1711157444012,-563.71666106,0.00019883,2]
[320098129,1711157444023,-5259.22097472,0.00019883,2]
[320098130,1711157444041,-540.77902528,0.00019883,2]
[320098131,1711157444054,-1793.41676688,0.00019885,2]
[320098132,1711157444067,-289.8270494,0.00019888,2]
[320098133,1711157444080,-177.69142294,0.0001989,2]
[320098134,1711157444142,-622.30857706,0.0001989,2]
[320098135,1711157444154,-19.43057736,0.00019892,2]
[320098136,1711157444169,-1088.04265427,0.00019892,2]
[320098137,1711157444195,-3972.09929284,0.00019892,2]
[320098138,1711157444208,-720.42747553,0.00019892,2]
[320098139,1711157444220,-41.98290271,0.00019892,2]
[320098140,1711157444235,-458.01709729,0.00019892,2]
[320098141,1711157444248,-500.0,0.00019892,2]
[320098142,1711157444259,-500.0,0.00019892,2]
[320098143,1711157444275,-500.0,0.00019892,2]
[320098144,1711157444288,-500.0,0.00019892,2]
[320098145,1711157444301,-500.0,0.00019892,2]
[320098146,1711157444315,-237.9170092,0.00019892,2]
[320098147,1711157446213,-934.51654593,0.00019797,2]
[320098148,1711157446227,-374.38397246,0.00019797,2]
[320098149,1711157446239,-262.0829908,0.00019892,2]
[320098150,1711157446252,-500.0,0.00019892,2]
[320098151,1711157446263,-500.0,0.00019892,2]
[320098152,1711157446276,-500.0,0.00019892,2]
[320098153,1711157446287,-500.0,0.00019892,2]
[320098154,1711157446299,-500.0,0.00019892,2]
[320098155,1711157446310,-500.0,0.00019892,2]
[320098156,1711157446322,-500.0,0.00019892,2]
[320098157,1711157446333,-500.0,0.00019892,2]
[320098158,1711157446345,-186.57321539,0.00019892,2]
[320098159,1711157446356,-525.01,0.00019892,2]
[320098160,1711157446367,-500.0,0.00019892,2]
[320098161,1711157446379,-788.66,0.00019892,2]
[320098162,1711157446390,-1430.04,0.00019892,2]
[320098163,1711157446401,-500.0,0.00019892,2]
[320098164,1711157446413,-209.98437067,0.00019892,2]
[320098165,1711157446428,-290.01562933,0.00019892,2]
[320098166,1711157446439,-580.26,0.00019892,2]
[320098167,1711157446451,-500.0,0.00019892,2]
[320098168,1711157446462,-1902.14,0.00019892,2]
[320098169,1711157446474,-809.81,0.00019892,2]
[320098170,1711157446485,-1428.1,0.00019892,2]
[320098171,1711157446496,-510.91433032,0.00019892,2]
[320098172,1711157446508,-500.0,0.00019892,2]
[320098173,1711157446520,-500.0,0.00019892,2]
[320098174,1711157446531,-985.25,0.00019892,2]
[320098175,1711157446546,-500.0,0.00019892,2]
[320098176,1711157446557,-155.0,0.00019893,2]
[320098177,1711157446569,-235.33400133,0.00019893,2]
[320098178,1711157446582,-2138.41333011,0.00019893,2]
[320098179,1711157446595,-968.8070421,0.00019893,2]
[320098180,1711157447544,-4100.01302924,0.00019893,2]
[320098181,1711157447653,-73153.81515196,0.00019893,2]
[320098182,1711157447663,-12973.4845382,0.00019893,2]
[320098183,1711157447674,-2908.9545231,0.00019893,2]
[320098184,1711157447684,-8346.69348,0.00019893,2]
[320098185,1711157447695,-294.02738367,0.00019894,2]
[320098186,1711157447705,-155.0,0.00019894,2]
[320098187,1711157447715,-193.69327944,0.00019894,2]
[320098188,1711157447725,-348.99193463,0.00019894,2]
[320098189,1711157447734,-500.59638917,0.00019898,2]
[320098190,1711157447744,-1000.0,0.00019898,5]
[320098191,1711157447755,-500.0,0.00019898,2]
[320098192,1711157447765,-3465.08,0.00019898,2]
[320098193,1711157447776,-3716.57,0.00019898,2]
[320098194,1711157447785,-500.0,0.00019898,2]
[320098195,1711157447795,-4635.03,0.00019898,2]
[320098196,1711157447805,-1167.61,0.00019898,2]
[320098197,1711157447815,-3431.39,0.00019898,2]
[320098198,1711157447824,-3080.66,0.00019898,2]
[320098199,1711157447834,-10755.64,0.00019898,2]
[320098200,1711157447843,-517.97823316,0.00019898,2]
[320098201,1711157447853,-18716.35,0.00019898,2]
[320098202,1711157447863,-1677.03,0.00019898,2]
[320098203,1711157447872,-3891.25,0.00019898,2]
[320098204,1711157447881,-22154.51,0.00019898,2]
[320098205,1711157447891,-6997.65,0.00019898,2]
[320098206,1711157447900,-5273.39,0.00019898,2]
[320098207,1711157447909,-5954.03,0.00019898,2]
[320098208,1711157447919,-1407.3,0.00019898,2]
[320098209,1711157447928,-491.04489627,0.00019898,2]
[320098210,1711157449587,-264.96943563,0.00019898,2]
[320098211,1711157449599,-842.0,0.00019898,2]
[320098212,1711157449611,-1586.8856681,0.00019898,2]
[320098213,1711157449620,-500.0,0.00019898,2]
[320098214,1711157449630,-131.57331893,0.00019898,2]
[320098215,1711157449642,-1980.38668107,0.00019898,2]
[320098216,1711157449651,-5071.09,0.00019898,2]
[320098217,1711157449661,-1466.37180678,0.00019898,2]
[320098218,1711157449687,-1548.85635633,0.00019898,2]
[320098219,1711157449760,-814.81183689,0.00019898,2]
[320098220,1711157449770,-2329.29,0.00019898,2]
[320098221,1711157449779,-6912.858709,0.00019898,2]
[320098222,1711157449791,-3280.621291,0.00019898,2]
[320098223,1711157449800,-6146.3,0.00019898,2]
[320098224,1711157449809,-7580.3,0.00019898,2]
[320098225,1711157449819,-808.256309,0.00019898,2]
[320098226,1711157676954,181.59797191,0.00025932,60]
[320098227,1711157959963,5019.29127184,0.00019892,30]
[320098228,1711158017198,462.43,0.00016569,2]
[320098229,1711158090698,3712.62202719,0.00016569,10]
[320098230,1711158106691,1121.38169959,0.00016569,10]
[320098231,1711158353170,-376.28173666,0.00016814,2]
[320098232,1711158384333,820.28257781,0.00025934,30]
[320098233,1711158434117,-560.17538028,0.00016811,2]
[320098234,1711158434137,-776.58856647,0.00016812,2]